[Event "Cape Verde Championship 2019"]
[Site "Ribeira Brava"]
[Date "2019.12.07"]
[Round "3.4"]
[White "Neves, Diogo Alexandre"]
[Black "Barros, Arlindo"]
[Result "1/2-1/2"]
[ECO "A40"]
[WhiteElo "1539"]
[BlackElo "1628"]
[Annotator "NA RC"]
[PlyCount "60"]
[EventDate "2019.12.05"]
[EventType "tourn"]
[EventCountry "KAP"]
[SourceTitle "playchess.com"]
[Source "ChessBase"]
[SourceQuality "1"]
[TimeControl "40/5400+30:1800+30"]

1. d4 {[%emt 0:00:00]} c6 {[%emt 0:00:00]} 2. c3 {[%emt 0:00:37]} Qb6 {[%emt 0:00:06]} 3. Qb3 {[%emt 0:00:31]} d6 {[%emt 0:02:02]} 4. Bf4 {[%emt 0:02:07]} Nf6 {[%emt 0:01:24]} 5. h3 {[%emt 0:00:31]} Qxb3 {[%emt 0:04:58]} 6. axb3 {[%emt 0:00:21]} b6 {[%emt 0:00:59]} 7. b4 {[%emt 0:02:10]} Nbd7 {[%emt 0:01:17]} 8. Nf3 {[%emt 0:03:30]} Bb7 {[%emt 0:02:17]} 9. Nbd2 {[%emt 0:04:06]} e6 {[%emt 0:02:34]} 10. e3 {[%emt 0:02:23]} Be7 {[%emt 0:00:23]} 11. Bd3 {[%emt 0:02:19]} O-O {[%emt 0:00:51]} 12. O-O {[%emt 0:00:11]} Rfe8 {[%emt 0:01:57]} 13. Nc4 {[%emt 0:05:44]} d5 {[%emt 0:05:07]} 14. Nd6 {[%emt 0:03:20]} Bxd6 {[%emt 0:00:48]} 15. Bxd6 {[%emt 0:00:26]} Ne4 {[%emt 0:00:55]} 16. Bh2 {[%emt 0:05:34]} c5 {[%emt 0:05:45]} 17. bxc5 {[%emt 0:02:59]} bxc5 {[%emt 0:00:04]} 18. Rfd1 {[%emt 0:02:38]} c4 {[%emt 0:02:05]} 19. Bxe4 {[%emt 0:00:33]} dxe4 {[%emt 0:00:05]} 20. Ne5 {[%emt 0:00:27]} Nxe5 {[%emt 0:01:25]} 21. Bxe5 {[%emt 0:00:11]} a5 {[%emt 0:02:35]} 22. Ra4 {[%emt 0:10:27]} Rec8 {[%emt 0:06:41]} 23. Rda1 {[%emt 0:01:06]} Bd5 {[%emt 0:03:44]} 24. Rxa5 {[%emt 0:02:48]} Rxa5 {[%emt 0:00:26]} 25. Rxa5 {[%emt 0:00:22]} Ra8 {[%emt 0:00:36]} 26. Rxa8+ {[%emt 0:00:24]} Bxa8 {[%emt 0:53:56]} 27. Kf1 {[%emt 0:02:09]} Bd5 {[%emt 0:00:00]} 28. Kg1 {[%emt 0:00:10]} Bc6 {[%emt 0:00:00]} 29. Kf1 {[%emt 0:00:16]} Kf8 {[%emt 0:00:00]} 30. Kg1 {[%emt 0:00:06]} Kg8 {[%emt 0:00:00]} 1/2-1/2

[Event "Cape Verde Championship 2019"]
[Site "Ribeira Brava"]
[Date "2019.12.07"]
[Round "4.2"]
[White "Monteiro, Antonio David Cabral"]
[Black "Neves, Diogo Alexandre"]
[Result "1-0"]
[ECO "E87"]
[WhiteElo "1779"]
[BlackElo "1539"]
[Annotator "NA"]
[PlyCount "81"]
[EventDate "2019.12.05"]
[EventType "tourn"]
[EventCountry "KAP"]
[SourceTitle "playchess.com"]
[Source "ChessBase"]
[SourceQuality "1"]
[TimeControl "40/5400+30:1800+30"]

1. d4 {[%emt 0:06:00]} Nf6 {[%emt 0:00:00]} 2. c4 {[%emt 0:00:29]} g6 {[%emt 0:00:17]} 3. Nc3 {[%emt 0:00:07]} Bg7 {[%emt 0:00:09]} 4. e4 {[%emt 0:00:02]} d6 {[%emt 0:00:16]} 5. f3 {[%emt 0:01:02]} O-O {[%emt 0:02:31]} 6. Be3 {[%emt 0:00:10]} e5 {[%emt 0:00:16]} 7. d5 {[%emt 0:00:13]} Nh5 {[%emt 0:03:14]} 8. Nge2 {[%emt 0:06:29]} f5 {[%emt 0:12:20]} 9. exf5 {[%emt 0:01:18]} gxf5 {[%emt 0:00:09]} 10. Qd2 {[%emt 0:01:11]} f4 {[%emt 0:00:48]} 11. Bf2 {[%emt 0:00:19]} b6 {[%emt 0:03:42]} 12. Ne4 {[%emt 0:03:12]} Bf5 {[%emt 0:03:39]} 13. N2c3 {[%emt 0:01:15]} Nd7 {[%emt 0:00:52]} 14. Bd3 {[%emt 0:00:33]} Kh8 {[%emt 0:09:05]} 15. O-O-O {[%emt 0:02:05]} Nc5 {[%emt 0:02:30]} 16. Nxc5 {[%emt 0:05:03]} bxc5 {[%emt 0:01:28]} 17. Ne4 {[%emt 0:05:31]} Nf6 {[%emt 0:01:36]} 18. Ng5 {[%emt 0:01:38]} Qd7 {[%emt 0:04:51]} 19. h4 {[%emt 0:04:23]} h5 {[%emt 0:01:21]} 20. Qc2 {[%emt 0:01:59]} Nh7 {[%emt 0:03:38]} 21. Bxf5 {[%emt 0:02:32]} Qxf5 {[%emt 0:00:38]} 22. Qxf5 {[%emt 0:00:52]} Rxf5 {[%emt 0:00:08]} 23. Ne6 {[%emt 0:00:30]} Rf7 {[%emt 0:04:57]} 24. Rd3 {[%emt 0:02:10]} Nf8 {[%emt 0:03:09]} 25. Ng5 {[%emt 0:00:41]} Re7 {[%emt 0:05:54]} 26. Rb3 {[%emt 0:02:24]} Bf6 {[%emt 0:00:42]} 27. Ne4 {[%emt 0:00:26]} Nh7 {[%emt 0:03:55]} 28. Rb7 {[%emt 0:01:33]} Rg7 {[%emt 0:03:26]} 29. g3 {[%emt 0:08:01]} fxg3 {[%emt 0:03:10]} 30. Bxg3 {[%emt 0:00:29]} Rag8 {[%emt 0:05:44]} 31. Bf2 {[%emt 0:03:58]} Bd8 {[%emt 0:03:27]} 32. Kd2 {[%emt 0:06:43]} Rf8 {[%emt 0:01:01]} 33. Ke2 {[%emt 0:01:03]} Rg2 {[%emt 0:03:42]} 34. Rxa7 {[%emt 0:03:41]} Rf7 {[%emt 0:01:09]} 35. Ra8 {[%emt 0:01:04]} Rg8 {[%emt 0:00:10]} 36. Rg1 {[%emt 0:02:53]} Rff8 {[%emt 0:00:16]} 37. Rxg8+ {[%emt 0:00:33]} Kxg8 {[%emt 0:00:56]} 38. a4 {[%emt 0:00:31]} Bf6 {[%emt 0:00:19]} 39. Rxf8+ {[%emt 0:06:37]} Kxf8 {[%emt 0:00:22]} 40. a5 {[%emt 0:00:36]} c6 {[%emt 0:00:55]} 41. a6 {[%emt 0:50:14]} 1-0

[Event "Cape Verde Championship 2019"]
[Site "Ribeira Brava"]
[Date "2019.12.07"]
[Round "4.3"]
[White "Barros, Luis"]
[Black "Pereira, Eder Marcio"]
[Result "0-1"]
[ECO "C06"]
[WhiteElo "1603"]
[BlackElo "1798"]
[Annotator "NA"]
[PlyCount "84"]
[EventDate "2019.12.05"]
[EventType "tourn"]
[EventCountry "KAP"]
[SourceTitle "playchess.com"]
[Source "ChessBase"]
[SourceQuality "1"]
[TimeControl "40/5400+30:1800+30"]

1. e4 {[%emt 0:00:00]} e6 {[%emt 0:00:53]} 2. d4 {[%emt 0:00:08]} d5 {[%emt 0:00:18]} 3. Nd2 {[%emt 0:00:45]} Nf6 {[%emt 0:00:10]} 4. e5 {[%emt 0:00:16]} Nfd7 {[%emt 0:00:09]} 5. Bd3 {[%emt 0:00:27]} c5 {[%emt 0:00:11]} 6. c3 {[%emt 0:00:24]} Nc6 {[%emt 0:00:42]} 7. Ngf3 {[%emt 0:00:14]} g6 {[%emt 0:08:58]} 8. O-O {[%emt 0:00:42]} Bg7 {[%emt 0:00:54]} 9. Re1 {[%emt 0:00:36]} Qb6 {[%emt 0:06:06]} 10. Rb1 {[%emt 0:02:18]} cxd4 {[%emt 0:01:39]} 11. cxd4 {[%emt 0:01:17]} Nxd4 {[%emt 0:01:16]} 12. Nxd4 {[%emt 0:00:07]} Qxd4 {[%emt 0:00:27]} 13. Nf3 {[%emt 0:00:22]} Qb4 {[%emt 0:02:32]} 14. a3 {[%emt 0:01:50]} Qe7 {[%emt 0:00:35]} 15. Bd2 {[%emt 0:03:03]} Qd8 {[%emt 0:07:05]} 16. Qa4 {[%emt 0:01:34]} O-O {[%emt 0:00:36]} 17. Qg4 {[%emt 0:00:24]} f5 {[%emt 0:13:02]} 18. exf6 {[%emt 0:01:48]} Nxf6 {[%emt 0:00:38]} 19. Qh4 {[%emt 0:02:49]} Nd7 {[%emt 0:01:36]} 20. Ng5 {[%emt 0:01:11]} h6 {[%emt 0:00:43]} 21. Bxg6 {[%emt 0:02:22]} Nf6 {[%emt 0:08:37]} 22. Nxe6 {[%emt 0:01:05]} Bxe6 {[%emt 0:00:31]} 23. Rxe6 {[%emt 0:01:02]} Ne4 {[%emt 0:00:25]} 24. Qxd8 {[%emt 0:02:23]} Raxd8 {[%emt 0:00:28]} 25. Bxe4 {[%emt 0:00:39]} dxe4 {[%emt 0:00:20]} 26. Bxh6 {[%emt 0:01:02]} Bxh6 {[%emt 0:00:28]} 27. Rxh6 {[%emt 0:00:16]} Rd2 {[%emt 0:00:11]} 28. Rf1 {[%emt 0:04:50]} Re8 {[%emt 0:03:03]} 29. Rh3 {[%emt 0:06:15]} Rxb2 {[%emt 0:00:53]} 30. Re3 {[%emt 0:00:31]} Re7 {[%emt 0:02:41]} 31. g3 {[%emt 0:03:34]} b5 {[%emt 0:00:53]} 32. Rfe1 {[%emt 0:00:20]} Rf7 {[%emt 0:00:53]} 33. R1e2 {[%emt 0:00:48]} Rxe2 {[%emt 0:00:12]} 34. Rxe2 {[%emt 0:01:13]} Rf3 {[%emt 0:00:08]} 35. Re3 {[%emt 0:00:55]} a5 {[%emt 0:01:49]} 36. Kf1 {[%emt 0:02:11]} Rxe3 {[%emt 0:04:08]} 37. fxe3 {[%emt 0:00:36]} b4 {[%emt 0:00:08]} 38. axb4 {[%emt 0:00:49]} a4 {[%emt 0:00:21]} 39. Ke2 {[%emt 0:08:34]} a3 {[%emt 0:00:25]} 40. Kd1 {[%emt 0:00:15]} a2 {[%emt 0:00:11]} 41. Kc2 {[%emt 0:30:20]} a1=Q {[%emt 0:30:14]} 42. Kb3 {[%emt 0:00:35]} Qa6 {[%emt 0:01:47]} 0-1

[Event "Cape Verde Championship 2019"]
[Site "Ribeira Brava"]
[Date "2019.12.07"]
[Round "4.4"]
[White "Fernandes, Luis De Pina"]
[Black "Monteiro, Antonio"]
[Result "0-1"]
[ECO "B70"]
[WhiteElo "1641"]
[BlackElo "1775"]
[Annotator "NA"]
[PlyCount "92"]
[EventDate "2019.12.05"]
[EventType "tourn"]
[EventCountry "KAP"]
[SourceTitle "playchess.com"]
[Source "ChessBase"]
[SourceQuality "1"]
[TimeControl "40/5400+30:1800+30"]

1. e4 {[%emt 0:00:41]} c5 {[%emt 0:00:00]} 2. Nf3 {[%emt 0:00:29]} g6 {[%emt 0:00:00]} 3. d4 {[%emt 0:01:48]} cxd4 {[%emt 0:00:00]} 4. Nxd4 {[%emt 0:00:02]} Nf6 {[%emt 0:00:08]} 5. Nc3 {[%emt 0:01:54]} d6 {[%emt 0:01:38]} 6. Bb5+ {[%emt 0:00:56]} Bd7 {[%emt 0:00:14]} 7. Bxd7+ {[%emt 0:00:05]} Nbxd7 {[%emt 0:00:14]} 8. O-O {[%emt 0:01:01]} Bg7 {[%emt 0:00:33]} 9. Be3 {[%emt 0:05:20]} O-O {[%emt 0:00:16]} 10. Rb1 {[%emt 0:04:48]} Rc8 {[%emt 0:01:50]} 11. f3 {[%emt 0:01:52]} a6 {[%emt 0:04:00]} 12. Qd2 {[%emt 0:00:13]} Ne5 {[%emt 0:02:15]} 13. b3 {[%emt 0:00:53]} Qa5 {[%emt 0:08:24]} 14. Nd5 {[%emt 0:00:06]} Qxd2 {[%emt 0:00:33]} 15. Nxe7+ {[%emt 0:00:03]} Kh8 {[%emt 0:01:10]} 16. Bxd2 {[%emt 0:00:02]} Rc7 {[%emt 0:00:40]} 17. Nd5 {[%emt 0:00:27]} Nxd5 {[%emt 0:00:47]} 18. exd5 {[%emt 0:00:16]} Nd7 {[%emt 0:03:23]} 19. Be3 {[%emt 0:00:13]} Rc3 {[%emt 0:02:17]} 20. Bf2 {[%emt 0:00:37]} Kg8 {[%emt 0:07:00]} 21. Rbc1 {[%emt 0:01:23]} Rfc8 {[%emt 0:01:09]} 22. Rfe1 {[%emt 0:01:46]} Ne5 {[%emt 0:07:03]} 23. Rcd1 {[%emt 0:01:49]} Kf8 {[%emt 0:06:09]} 24. Re2 {[%emt 0:00:44]} Nd7 {[%emt 0:01:31]} 25. Rdd2 {[%emt 0:04:44]} R8c5 {[%emt 0:02:14]} 26. b4 {[%emt 0:01:48]} R5c4 {[%emt 0:04:50]} 27. b5 {[%emt 0:00:45]} Ra3 {[%emt 0:12:08]} 28. bxa6 {[%emt 0:01:00]} Rxa6 {[%emt 0:01:16]} 29. Nb5 {[%emt 0:01:28]} Bc3 {[%emt 0:06:57]} 30. Nxc3 {[%emt 0:00:43]} Rxc3 {[%emt 0:00:17]} 31. Bd4 {[%emt 0:01:33]} Rc4 {[%emt 0:02:03]} 32. c3 {[%emt 0:00:03]} b5 {[%emt 0:02:03]} 33. Rb2 {[%emt 0:02:05]} Ra5 {[%emt 0:02:20]} 34. Rb1 {[%emt 0:03:13]} Rc8 {[%emt 0:03:49]} 35. a4 {[%emt 0:01:30]} bxa4 {[%emt 0:01:28]} 36. Rb7 {[%emt 0:01:01]} Rd8 {[%emt 0:01:03]} 37. Ra2 {[%emt 0:00:27]} Rxd5 {[%emt 0:02:34]} 38. Rxa4 {[%emt 0:00:15]} Nc5 {[%emt 0:00:24]} 39. Bxc5 {[%emt 0:02:34]} dxc5 {[%emt 0:01:59]} 40. Rc7 {[%emt 0:00:49]} R8d7 {[%emt 0:05:43]} 41. Rc8+ {[%emt 0:40:14]} Ke7 {[%emt 0:31:23]} 42. Ra6 {[%emt 0:00:02]} Rb7 {[%emt 0:05:53]} 43. Rac6 {[%emt 0:01:24]} Rb2 {[%emt 0:01:07]} 44. R8c7+ {[%emt 0:02:45]} Kf8 {[%emt 0:00:31]} 45. h3 {[%emt 0:00:26]} Rg5 {[%emt 0:00:00]} 46. g4 {[%emt 0:00:00]} Rd5 {[%emt 0:00:00]} 0-1

[Event "Cape Verde Championship 2019"]
[Site "Ribeira Brava"]
[Date "2019.12.08"]
[Round "5.2"]
[White "Pereira, Eder Marcio"]
[Black "Fernandes, Luis De Pina"]
[Result "1-0"]
[ECO "B07"]
[WhiteElo "1798"]
[BlackElo "1641"]
[Annotator "NA RC"]
[PlyCount "65"]
[EventDate "2019.12.05"]
[EventType "tourn"]
[EventCountry "KAP"]
[SourceTitle "playchess.com"]
[Source "ChessBase"]
[SourceQuality "1"]
[TimeControl "40/5400+30:1800+30"]

1. d4 {[%emt 0:00:00]} Nf6 {[%emt 0:00:00]} 2. Bf4 {[%emt 0:00:12]} g6 {[%emt 0:00:00]} 3. Nc3 {[%emt 0:01:54]} Bg7 {[%emt 0:00:18]} 4. e4 {[%emt 0:00:15]} d6 {[%emt 0:00:28]} 5. Qd2 {[%emt 0:00:43]} O-O {[%emt 0:01:39]} 6. O-O-O {[%emt 0:02:08]} c6 {[%emt 0:02:45]} 7. Be2 {[%emt 0:04:14]} Nbd7 {[%emt 0:02:43]} 8. e5 {[%emt 0:12:48]} Ne8 {[%emt 0:01:43]} 9. h4 {[%emt 0:00:42]} dxe5 {[%emt 0:02:29]} 10. dxe5 {[%emt 0:01:44]} Qa5 {[%emt 0:00:07]} 11. h5 {[%emt 0:03:39]} Bxe5 {[%emt 0:00:40]} 12. hxg6 {[%emt 0:05:01]} fxg6 {[%emt 0:02:54]} 13. Bc4+ {[%emt 0:00:23]} Kh8 {[%emt 0:01:02]} 14. Bg3 {[%emt 0:19:40]} Bg7 {[%emt 0:05:43]} 15. Nf3 {[%emt 0:02:03]} Nef6 {[%emt 0:03:01]} 16. Ng5 {[%emt 0:03:29]} Nd5 {[%emt 0:12:41]} 17. Rxh7+ {[%emt 0:07:45]} Kg8 {[%emt 0:00:02]} 18. Rxg7+ {[%emt 0:00:17]} Kxg7 {[%emt 0:00:56]} 19. Ne6+ {[%emt 0:00:11]} Kf7 {[%emt 0:00:31]} 20. Nxf8 {[%emt 0:03:04]} Kxf8 {[%emt 0:00:04]} 21. Qh6+ {[%emt 0:00:38]} Kf7 {[%emt 0:04:17]} 22. Qh7+ {[%emt 0:09:53]} Kf8 {[%emt 0:00:06]} 23. Bf4 {[%emt 0:06:34]} N7f6 {[%emt 0:03:26]} 24. Bh6+ {[%emt 0:00:26]} Ke8 {[%emt 0:00:13]} 25. Qxg6+ {[%emt 0:01:28]} Kd8 {[%emt 0:00:32]} 26. Bg5 {[%emt 0:00:59]} Kc7 {[%emt 0:02:03]} 27. Bxf6 {[%emt 0:01:00]} exf6 {[%emt 0:03:11]} 28. Bxd5 {[%emt 0:00:20]} cxd5 {[%emt 0:03:49]} 29. Nxd5+ {[%emt 0:00:27]} Kc6 {[%emt 0:00:16]} 30. Qxf6+ {[%emt 0:00:26]} Kb5 {[%emt 0:00:30]} 31. c4+ {[%emt 0:00:35]} Kxc4 {[%emt 0:00:34]} 32. b3+ {[%emt 0:01:42]} Kb5 {[%emt 0:00:18]} 33. a4+ {[%emt 0:00:11]} 1-0

[Event "Cape Verde Championship 2019"]
[Site "Ribeira Brava"]
[Date "2019.12.08"]
[Round "5.3"]
[White "Neves, Diogo Alexandre"]
[Black "Barros, Luis"]
[Result "1-0"]
[ECO "D00"]
[WhiteElo "1539"]
[BlackElo "1603"]
[Annotator "NA RC"]
[PlyCount "73"]
[EventDate "2019.12.05"]
[EventType "tourn"]
[EventCountry "KAP"]
[SourceTitle "playchess.com"]
[Source "ChessBase"]
[SourceQuality "1"]
[TimeControl "40/5400+30:1800+30"]

1. d4 {[%emt 0:00:00]} Nf6 {[%emt 0:00:06]} 2. Bf4 {[%emt 0:00:08]} Nc6 {[%emt 0:01:29]} 3. e3 {[%emt 0:01:04]} d5 {[%emt 0:01:10]} 4. c3 {[%emt 0:00:33]} a6 {[%emt 0:00:47]} 5. Bd3 {[%emt 0:04:51]} e6 {[%emt 0:01:10]} 6. Nf3 {[%emt 0:00:54]} Nh5 {[%emt 0:01:15]} 7. Bg3 {[%emt 0:00:36]} g6 {[%emt 0:00:41]} 8. Bh4 {[%emt 0:04:03]} Be7 {[%emt 0:00:45]} 9. Bxe7 {[%emt 1:22:21]} Qxe7 {[%emt 0:01:02]} 10. Nbd2 {[%emt 0:00:00]} e5 {[%emt 0:01:25]} 11. dxe5 {[%emt 0:00:00]} Nxe5 {[%emt 0:00:13]} 12. Nxe5 {[%emt 0:00:00]} Qxe5 {[%emt 0:00:13]} 13. Nf3 {[%emt 0:00:00]} Qe7 {[%emt 0:00:53]} 14. h3 {[%emt 0:00:00]} O-O {[%emt 0:00:35]} 15. O-O {[%emt 0:00:00]} b5 {[%emt 0:00:36]} 16. a3 {[%emt 0:00:00]} c5 {[%emt 0:01:11]} 17. Be2 {[%emt 0:00:00]} Bb7 {[%emt 0:00:38]} 18. Rc1 {[%emt 0:00:00]} Rfe8 {[%emt 0:03:26]} 19. Re1 {[%emt 0:00:00]} Nf6 {[%emt 0:02:04]} 20. Qc2 {[%emt 0:00:00]} Rac8 {[%emt 0:01:48]} 21. Qd2 {[%emt 0:00:00]} Ne4 {[%emt 0:00:42]} 22. Qd1 {[%emt 0:00:00]} Qd6 {[%emt 0:03:46]} 23. Bd3 {[%emt 0:00:00]} f5 {[%emt 0:02:36]} 24. Bxe4 {[%emt 0:00:00]} fxe4 {[%emt 0:01:16]} 25. Nh2 {[%emt 0:00:00]} Rc7 {[%emt 0:00:02]} 26. Rc2 {[%emt 0:00:00]} Bc8 {[%emt 0:00:41]} 27. Rd2 {[%emt 0:00:00]} Re5 {[%emt 0:01:18]} 28. f4 {[%emt 0:00:00]} exf3 {[%emt 0:04:09]} 29. Nxf3 {[%emt 0:00:00]} Rh5 {[%emt 0:01:54]} 30. Ree2 {[%emt 0:00:00]} Rf7 {[%emt 0:00:48]} 31. e4 {[%emt 0:00:00]} Bxh3 {[%emt 0:04:31]} 32. Rxd5 {[%emt 0:00:00]} Rxd5 {[%emt 0:07:40]} 33. Qxd5 {[%emt 0:00:00]} Qf4 {[%emt 0:04:07]} 34. Ng5 {[%emt 0:00:00]} Bg4 {[%emt 0:21:54]} 35. Nxf7 {[%emt 0:00:00]} Bxe2 {[%emt 0:02:12]} 36. Ng5+ {[%emt 0:00:00]} Kg7 {[%emt 0:01:06]} 37. Ne6+ {[%emt 0:00:00]} 1-0

[Event "Cape Verde Championship 2019"]
[Site "Ribeira Brava"]
[Date "2019.12.08"]
[Round "5.4"]
[White "Barros, Arlindo"]
[Black "Monteiro, Antonio David Cabral"]
[Result "0-1"]
[ECO "B08"]
[WhiteElo "1628"]
[BlackElo "1779"]
[Annotator "NA RC"]
[PlyCount "164"]
[EventDate "2019.12.05"]
[EventType "tourn"]
[EventCountry "KAP"]
[SourceTitle "playchess.com"]
[Source "ChessBase"]
[SourceQuality "1"]
[TimeControl "40/5400+30:1800+30"]

1. e4 {[%emt 0:00:00]} d6 {[%emt 0:00:06]} 2. d4 {[%emt 0:00:12]} Nf6 {[%emt 0:00:16]} 3. Nc3 {[%emt 0:01:25]} g6 {[%emt 0:00:29]} 4. Nf3 {[%emt 0:01:43]} Bg7 {[%emt 0:00:55]} 5. Be3 {[%emt 0:00:36]} Nbd7 {[%emt 0:00:39]} 6. h3 {[%emt 0:01:08]} b6 {[%emt 0:01:44]} 7. e5 {[%emt 0:02:46]} Ng8 {[%emt 0:02:51]} 8. Bb5 {[%emt 0:02:44]} e6 {[%emt 0:03:19]} 9. Qd2 {[%emt 0:01:41]} Bb7 {[%emt 0:01:05]} 10. exd6 {[%emt 0:03:00]} cxd6 {[%emt 0:00:02]} 11. d5 {[%emt 0:03:30]} e5 {[%emt 0:01:35]} 12. Ne4 {[%emt 0:01:36]} Qe7 {[%emt 0:01:42]} 13. Qb4 {[%emt 0:08:34]} Bf8 {[%emt 0:00:59]} 14. Bg5 {[%emt 0:01:04]} f6 {[%emt 0:00:51]} 15. Bxd7+ {[%emt 0:04:44]} Kxd7 {[%emt 0:02:30]} 16. Qb5+ {[%emt 1:03:17]} Kd8 {[%emt 0:00:36]} 17. Be3 {[%emt 0:00:00]} Qd7 {[%emt 0:02:13]} 18. Qb3 {[%emt 0:00:00]} Ke7 {[%emt 0:03:10]} 19. O-O {[%emt 0:00:00]} h6 {[%emt 0:01:43]} 20. c4 {[%emt 0:00:00]} f5 {[%emt 0:01:12]} 21. Nc3 {[%emt 0:00:00]} g5 {[%emt 0:01:01]} 22. Nh2 {[%emt 0:00:00]} Nf6 {[%emt 0:01:20]} 23. f3 {[%emt 0:00:00]} Bg7 {[%emt 0:04:49]} 24. Rae1 {[%emt 0:00:00]} Kf7 {[%emt 0:02:35]} 25. Nb5 {[%emt 0:00:00]} Rhe8 {[%emt 0:02:42]} 26. Qa3 {[%emt 0:00:00]} Bf8 {[%emt 0:03:39]} 27. Qb3 {[%emt 0:00:00]} Be7 {[%emt 0:07:34]} 28. Qd3 {[%emt 0:00:00]} Kg7 {[%emt 0:03:16]} 29. a4 {[%emt 0:00:00]} a6 {[%emt 0:04:29]} 30. Nc3 {[%emt 0:00:00]} Bd8 {[%emt 0:04:22]} 31. b3 {[%emt 0:00:00]} Bc7 {[%emt 0:02:12]} 32. Qd2 {[%emt 0:00:00]} Qf7 {[%emt 0:03:15]} 33. Qf2 {[%emt 0:00:00]} Nd7 {[%emt 0:00:34]} 34. Qc2 {[%emt 0:00:00]} Rf8 {[%emt 0:03:46]} 35. Qd2 {[%emt 0:00:00]} Qh5 {[%emt 0:04:31]} 36. Ne2 {[%emt 0:00:00]} Qg6 {[%emt 0:00:52]} 37. Qc3 {[%emt 0:00:00]} Qf6 {[%emt 0:01:13]} 38. Bf2 {[%emt 0:00:00]} Bc8 {[%emt 0:01:54]} 39. Ng3 {[%emt 0:00:00]} Kg6 {[%emt 0:00:47]} 40. Ne2 {[%emt 0:00:00]} Qe7 {[%emt 0:03:05]} 41. f4 {[%emt 0:25:28]} e4 {[%emt 0:33:02]} 42. fxg5 {[%emt 0:01:20]} hxg5 {[%emt 0:07:50]} 43. Nd4 {[%emt 0:02:51]} Ne5 {[%emt 0:05:33]} 44. Re3 {[%emt 0:07:19]} Bd7 {[%emt 0:02:45]} 45. Be1 {[%emt 0:04:30]} Rac8 {[%emt 0:03:56]} 46. Kh1 {[%emt 0:00:00]} Bd8 {[%emt 0:00:00]} 47. Qa1 {[%emt 0:00:00]} Bc7 {[%emt 0:00:00]} 48. Bd2 {[%emt 0:00:00]} Rf7 {[%emt 0:00:00]} 49. Rg3 {[%emt 0:00:00]} g4 {[%emt 0:00:00]} 50. hxg4 {[%emt 0:00:00]} fxg4 {[%emt 0:00:00]} 51. Rxf7 {[%emt 0:00:00]} Qxf7 {[%emt 0:00:00]} 52. Qe1 {[%emt 0:00:00]} Bf5 {[%emt 0:00:00]} 53. Qe3 {[%emt 0:00:00]} Qf6 {[%emt 0:00:00]} 54. Qh6+ {[%emt 0:00:00]} Kf7 {[%emt 0:00:00]} 55. Nxf5 {[%emt 0:00:00]} Qxf5 {[%emt 0:00:00]} 56. Qf4 {[%emt 0:00:00]} Kg6 {[%emt 0:00:00]} 57. Qh6+ {[%emt 0:00:00]} Kf7 {[%emt 0:00:00]} 58. Qf4 {[%emt 0:00:00]} Kg6 {[%emt 0:00:00]} 59. Nxg4 {[%emt 0:00:00]} Qxf4 {[%emt 0:00:00]} 60. Bxf4 {[%emt 0:00:32]} Nxg4 {[%emt 0:00:00]} 61. Rxg4+ {[%emt 0:00:05]} Kf5 {[%emt 0:00:00]} 62. Rh4 {[%emt 0:02:21]} Bd8 {[%emt 0:00:00]} 63. Rh6 {[%emt 0:00:01]} Kxf4 {[%emt 0:00:00]} 64. Rxd6 {[%emt 0:00:10]} Ke3 {[%emt 0:00:00]} 65. Kg1 {[%emt 0:00:26]} Kd2 {[%emt 0:00:46]} 66. Re6 {[%emt 0:00:20]} e3 {[%emt 0:00:27]} 67. Kf1 {[%emt 0:00:18]} Bh4 {[%emt 0:00:46]} 68. g4 {[%emt 0:01:49]} Rf8+ {[%emt 0:00:17]} 69. Kg2 {[%emt 0:00:09]} e2 {[%emt 0:00:20]} 70. b4 {[%emt 0:00:29]} e1=Q {[%emt 0:00:18]} 71. Rxe1 {[%emt 0:00:03]} Kxe1 {[%emt 0:00:30]} 72. c5 {[%emt 0:00:14]} bxc5 {[%emt 0:00:55]} 73. bxc5 {[%emt 0:00:02]} Bf2 {[%emt 0:00:22]} 74. c6 {[%emt 0:00:04]} Rc8 {[%emt 0:01:35]} 75. Kf3 {[%emt 0:00:02]} Bb6 {[%emt 0:01:12]} 76. Ke4 {[%emt 0:00:10]} Bc7 {[%emt 0:00:37]} 77. Kd4 {[%emt 0:00:08]} Rg8 {[%emt 0:02:11]} 78. Ke4 {[%emt 0:03:35]} Rxg4+ {[%emt 0:00:12]} 79. Kf5 {[%emt 0:00:01]} Rxa4 {[%emt 0:00:48]} 80. Ke6 {[%emt 0:00:01]} Rd4 {[%emt 0:01:14]} 81. Kd7 {[%emt 0:00:03]} Bg3 {[%emt 0:00:24]} 82. c7 {[%emt 0:00:13]} Bxc7 {[%emt 0:00:44]} 0-1